bitfinex/quotes_SOLUSD_20250531
["timestamp","ask_amount","ask_price","bid_price","bid_amount"]
[1748732737139,49.58,156.58,156.53,36.52366006]
[1748732737543,10.2,156.57,156.53,36.52366006]
[1748732741372,10.2,156.61,156.56,11.48562075]
[1748732741667,10.2,156.61,156.6,11.48562075]
[1748732741969,10.2,156.66,156.6,11.48562075]
[1748732742161,10.2,156.66,156.63,11.48562075]
[1748732742379,10.2,156.66,156.64,11.48562075]
[1748732742867,10.2,156.66,156.65,11.48562075]
[1748732743068,10.2,156.66,156.65,30.13526961]
[1748732743463,10.2,156.66,156.65,36.51892744]
[1748732743659,49.36,156.7,156.66,18.64964886]
[1748732743958,49.36,156.7,156.66,11.48562075]
[1748732744651,49.36,156.7,156.67,11.48562075]
[1748732744850,55.90163012,156.7,156.65,6.38365783]
[1748732745045,55.90163012,156.7,156.66,11.48562075]
[1748732745273,55.90163012,156.7,156.65,6.38365783]
[1748732745274,55.90162272,156.7,156.65,6.38365783]
[1748732745571,49.52,156.7,156.66,11.48562075]
[1748732745745,49.52,156.7,156.64,25.03359178]
[1748732745949,67.38732543,156.7,156.66,11.48562075]
[1748732746660,73.8231622,156.7,156.66,17.92145752]
[1748732746963,55.90170468,156.7,156.66,17.92145752]
[1748732747171,49.52,156.7,156.66,17.92145752]
[1748732747363,55.90166718,156.7,156.66,17.92145752]
[1748732747560,49.52,156.7,156.66,17.92145752]
[1748732748386,49.52,156.7,156.67,17.92145752]
[1748732748691,49.52,156.7,156.66,17.92145752]
[1748732749873,49.52,156.7,156.67,17.92145752]
[1748732750473,67.44145752,156.7,156.66,17.92145752]
[1748732751266,28.12145752,156.7,156.66,17.92145752]
[1748732751479,67.50145752,156.7,156.66,17.92145752]
[1748732751883,67.50145752,156.7,156.66,24.30469344]
[1748732752275,49.58,156.7,156.66,24.30469344]
[1748732752681,10.2,156.7,156.67,36.57110638]
[1748732752881,10.2,156.7,156.69,17.92145752]
[1748732753297,10.2,156.7,156.68,17.92145752]
[1748732754004,10.2,156.7,156.68,24.30362509]
[1748732754199,10.2,156.7,156.69,17.92145752]
[1748732754799,10.2,156.7,156.68,6.38216757]
[1748732754800,10.2,156.7,156.68,24.30362509]
[1748732757487,10.2,156.7,156.68,18.64964886]
[1748732757804,28.12145752,156.7,156.66,18.64964886]
[1748732758001,67.44145752,156.7,156.66,18.64964886]
[1748732758718,49.52,156.7,156.66,36.57110638]
[1748732759217,49.52,156.7,156.66,25.03289327]
[1748732759510,49.52,156.7,156.66,36.57110638]
[1748732760794,49.52,156.7,156.64,26.0]
[1748732760795,17.92145752,156.68,156.64,26.0]
[1748732761193,17.92145752,156.68,156.64,32.38406499]
[1748732761616,10.2,156.7,156.67,17.92145752]
[1748732761994,10.2,156.7,156.66,17.92145752]
[1748732764026,10.2,156.7,156.66,24.30456521]
[1748732764206,10.2,156.7,156.66,17.92145752]
[1748732764411,17.92145752,156.67,156.62,17.92145752]
[1748732764602,17.92145752,156.65,156.62,18.64964886]
[1748732764801,28.20145752,156.65,156.62,18.64964886]
[1748732765414,28.20145752,156.65,156.61,6.38528829]
[1748732766225,10.28,156.65,156.61,24.30674581]
[1748732768534,28.20145752,156.65,156.61,6.38528829]
[1748732770606,10.28,156.65,156.61,24.30674581]
[1748732776111,28.20145752,156.65,156.61,6.38528829]
[1748732777553,34.58524122,156.65,156.61,18.64964886]
[1748732777754,34.58524122,156.65,156.6,17.92145752]
[1748732778556,34.58524122,156.65,156.6,24.30713415]
[1748732778939,28.20145752,156.65,156.6,24.30713415]
[1748732779146,28.20145752,156.65,156.61,17.92145752]
[1748732779457,10.28,156.65,156.62,17.92145752]
[1748732779759,28.20145752,156.65,156.6,6.38567663]
[1748732779948,28.20145752,156.65,156.6,24.30713415]
[1748732781152,34.58512065,156.65,156.6,24.30713415]
[1748732781457,10.28,156.65,156.61,18.64964886]
[1748732781649,10.28,156.65,156.62,17.92145752]
[1748732783062,10.28,156.65,156.63,6.38447296]
[1748732786549,10.28,156.65,156.62,6.3848806]
[1748732790049,10.28,156.65,156.62,24.30633812]
[1748732791668,10.28,156.65,156.62,6.3848806]
[1748732796767,10.28,156.65,156.62,17.85947249]
[1748732798475,10.28,156.65,156.62,6.3848806]
[1748732807474,11.47459189,156.64,156.59,26.0]
[1748732807793,50.65459189,156.63,156.58,7.9214674]
[1748732808000,11.47459189,156.62,156.58,6.3863674]
[1748732814000,45.56455234,156.63,156.51,15.97257887]
[1748732814001,11.47459189,156.59,156.51,15.97257887]
[1748732814201,21.73459189,156.58,156.53,26.0]
[1748732814405,21.73459189,156.58,156.54,18.64964886]
[1748732816094,28.1211305,156.58,156.54,18.64964886]
[1748732816301,28.1211305,156.58,156.53,43.86282354]
[1748732816302,11.47459189,156.57,156.53,32.38823165]
[1748732816908,17.95025127,156.57,156.53,50.33848292]
[1748732818687,10.26,156.58,156.54,36.59990013]
[1748732818880,10.26,156.58,156.55,17.95025127]
[1748732820586,10.26,156.58,156.56,6.38732754]
[1748732821587,10.26,156.58,156.56,24.33757881]
[1748732821811,10.26,156.58,156.57,17.95025127]
[1748732822190,10.26,156.58,156.57,36.7420617]
[1748732822395,10.16,156.62,156.58,18.79181043]
[1748732822597,10.16,156.63,156.61,6.38528829]
[1748732823195,10.16,156.63,156.61,24.33553956]
[1748732834012,10.16,156.63,156.62,17.95025127]
[1748732835199,10.16,156.63,156.62,24.33513187]
[1748732838227,10.16,156.63,156.61,36.59990013]
[1748732839228,10.16,156.63,156.62,6.3848806]
[1748732840825,10.16,156.63,156.62,24.33513187]
[1748732841312,49.26,156.65,156.62,24.33513187]
[1748732844638,49.26,156.65,156.62,17.85892923]
[1748732846524,10.16,156.65,156.62,17.85892923]
[1748732846739,10.16,156.65,156.64,11.47404863]
[1748732847335,10.16,156.65,156.64,30.12369749]
[1748732847720,10.08,156.67,156.64,30.12369749]
[1748732847915,49.1,156.67,156.65,11.47404863]
[1748732848541,10.08,156.67,156.66,17.85729898]
[1748732848742,10.08,156.67,156.66,24.30243708]
[1748732849244,10.08,156.67,156.66,42.95208594]
[1748732857863,49.06,156.67,156.64,17.91918673]
[1748732858049,49.06,156.67,156.62,42.95371619]
[1748732858050,66.97918673,156.67,156.62,42.95371619]
[1748732858748,49.06,156.67,156.63,17.91918673]
[1748732860860,49.06,156.67,156.63,24.30337246]
[1748732865089,66.97918673,156.67,156.63,24.30337246]
[1748732865388,17.91918673,156.66,156.62,25.03441503]
[1748732866572,17.91918673,156.64,156.6,6.38557353]
[1748732866783,39.0,156.63,156.6,6.38557353]
[1748732867082,10.08,156.62,156.6,6.38557353]
[1748732867282,10.08,156.62,156.59,51.03571697]
[1748732868288,27.99918673,156.62,156.57,43.91918673]
[1748732868588,10.08,156.62,156.6,24.30478376]
[1748732870077,10.08,156.62,156.61,17.91918673]
[1748732870277,10.08,156.62,156.61,36.56883559]
[1748732870994,10.08,156.62,156.61,42.95412388]
[1748732871491,49.12,156.66,156.62,18.64964886]
[1748732871695,10.08,156.66,156.63,17.91918673]
[1748732871865,49.12,156.66,156.63,17.91918673]
[1748732873887,49.12,156.66,156.62,42.95336336]
[1748732879006,10.08,156.66,156.64,18.64964886]
[1748732879201,49.08,156.66,156.64,17.91918673]
[1748732880089,49.08,156.66,156.64,25.03371423]
[1748732881211,49.08,156.66,156.64,42.95290096]
[1748732882433,10.08,156.66,156.64,25.03371423]
[1748732883838,49.06,156.66,156.64,42.95290096]
[1748732884442,10.08,156.66,156.64,42.95290096]
[1748732887117,10.08,156.66,156.65,36.56883559]
[1748732887929,10.08,156.66,156.65,36.71099716]
[1748732888238,10.08,156.7,156.65,36.71099716]
[1748732888539,10.08,156.7,156.69,36.56883559]
[1748732888923,10.08,156.7,156.69,18.64964886]
[1748732889821,10.08,156.7,156.69,25.03167706]
[1748732893448,10.08,156.7,156.69,42.95086379]
[1748732894126,10.08,156.7,156.69,43.09302536]
[1748732894422,11.80206883,156.72,156.69,43.09302536]
[1748732894627,50.76206883,156.72,156.71,18.64964886]
[1748732894937,50.76206883,156.72,156.71,17.91918673]
[1748732895140,11.80206883,156.72,156.71,18.0613483]
[1748732895450,130.88,156.75,156.71,17.91918673]
[1748732895643,130.88,156.75,156.74,17.91918673]
[1748732896167,91.92,156.75,156.74,17.91918673]
[1748732896330,49.04,156.76,156.74,36.56883559]
[1748732896717,49.04,156.76,156.73,17.91918673]
[1748732898024,49.04,156.76,156.73,24.2994755]
[1748732898434,49.04,156.76,156.72,6.38075173]
[1748732898634,66.95918673,156.76,156.72,6.38075173]
[1748732901139,6.37958532,156.75,156.7,18.64964886]
[1748732901449,17.91918673,156.75,156.7,36.56883559]
[1748732901645,17.91918673,156.75,156.71,17.91918673]
[1748732902444,66.95918673,156.76,156.71,17.91918673]
[1748732902660,66.95918673,156.76,156.71,24.30018328]
[1748732903660,73.33850234,156.76,156.71,6.38099655]
[1748732904159,17.91918673,156.75,156.71,6.38099655]
[1748732906664,10.08,156.76,156.72,18.64964886]
[1748732906845,38.94,156.75,156.72,17.91918673]
[1748732907979,38.94,156.75,156.72,18.64964886]
[1748732909071,38.94,156.75,156.72,25.0303886]
[1748732910565,27.99918673,156.76,156.72,25.0303886]
[1748732910764,17.91918673,156.76,156.72,25.0303886]
[1748732910950,20.64029148,156.83,156.8,26.0]
[1748732911153,9.00609411,156.87,156.84,10.0]
[1748732911341,6.387,156.98,156.89,26.0]
[1748732911579,3.20652526,157.06,156.97,17.91918673]
[1748732911785,3.20652526,157.06,157.05,43.91918673]
[1748732911999,3.20652526,157.06,157.05,17.91918673]
[1748732912298,5.01179453,157.08,157.07,26.0]
[1748732912516,91.88,157.12,157.07,43.91918673]
[1748732912693,91.88,157.12,157.11,17.91918673]
[1748732912890,91.88,157.12,157.11,24.28415395]
[1748732913289,91.88,157.12,157.11,22.63725572]
[1748732913601,91.88,157.12,157.11,4.71806899]
[1748732913817,91.88,157.12,157.11,22.63725572]
[1748732914124,91.88,157.12,157.11,32.07460323]
[1748732914277,91.88,157.12,157.11,32.07441926]
[1748732914480,91.88,157.12,157.11,14.155084]
[1748732914784,91.88,157.12,157.11,40.8885799]
[1748732915186,91.88,157.12,157.11,9.43617765]
[1748732915392,91.88,157.12,157.11,36.16967355]
[1748732915703,91.88,157.12,157.11,40.84343675]
[1748732916000,91.88,157.12,157.11,40.84335488]
[1748732916204,91.88,157.12,157.11,36.16967355]
[1748732916590,91.88,157.12,157.11,40.8154844]
[1748732916778,91.88,157.12,157.11,14.0819885]
[1748732917183,11.0,157.13,157.11,14.0819885]
[1748732917184,11.0,157.13,157.11,40.8154844]
[1748732917381,11.0,157.13,157.12,4.64581085]
[1748732917687,1.5998,157.17,157.13,26.0]
[1748732918090,1.5998,157.17,157.16,26.7334959]
[1748732919908,51.56,157.2,157.16,26.7334959]
[1748732920219,51.56,157.2,157.14,26.0]
[1748732920220,57.92144961,157.2,157.14,52.7334959]
[1748732921819,10.98,157.2,157.18,26.7334959]
[1748732922130,10.98,157.2,157.19,26.7334959]
[1748732922331,10.98,157.2,157.18,26.7334959]
[1748732922852,10.98,157.2,157.12,26.0]
[1748732922853,26.7334959,157.19,157.12,26.0]
[1748732923133,26.7334959,157.17,157.12,26.0]
[1748732923337,67.3134959,157.18,157.13,26.7334959]
[1748732923541,40.58,157.18,157.14,26.7334959]
[1748732923708,46.94236129,157.18,157.14,26.7334959]
[1748732923910,46.94236129,157.18,157.13,26.7334959]
[1748732923911,73.67585719,157.18,157.13,26.7334959]
[1748732924212,73.67585719,157.18,157.11,9.43617765]
[1748732924213,26.7334959,157.17,157.11,9.43617765]
[1748732924412,26.7334959,157.15,157.11,9.43617765]
[1748732924608,46.94236129,157.18,157.11,9.43617765]
[1748732924821,26.7334959,157.14,157.11,9.43617765]
[1748732925037,62.84769275,157.18,157.11,9.43617765]
[1748732925511,26.7334959,157.16,157.11,9.43617765]
[1748732925713,26.7334959,157.16,157.11,36.16967355]
[1748732925912,46.90334712,157.15,157.11,36.16967355]
[1748732926135,46.90334712,157.15,157.11,9.43617765]
[1748732927356,46.90334712,157.15,157.11,36.16967355]
[1748732927555,46.90334712,157.15,157.11,9.43617765]
[1748732928676,10.96,157.14,157.11,9.43617765]
[1748732929169,10.96,157.14,157.11,54.81932241]
[1748732929636,10.96,157.14,157.13,26.7334959]
[1748732929846,10.96,157.14,157.12,45.52530633]
[1748732930266,10.96,157.14,157.13,26.7334959]
[1748732931151,10.96,157.14,157.12,18.79181043]
[1748732931756,26.7334959,157.17,157.13,26.0]
[1748732931967,34.64643091,157.18,157.13,26.0]
[1748732932143,78.1134959,157.17,157.13,26.0]
[1748732932335,10.96,157.17,157.13,26.0]
[1748732932542,10.96,157.17,157.14,45.52530633]
[1748732933639,10.96,157.17,157.14,51.88902228]
[1748732933850,10.96,157.17,157.14,45.52530633]
[1748732934475,17.32257943,157.17,157.14,18.79181043]
[1748732934652,26.7334959,157.16,157.13,26.0]
[1748732935251,44.05607533,157.17,157.13,26.0]
[1748732936154,17.32257943,157.17,157.13,26.0]
[1748732936361,44.05607533,157.17,157.13,26.0]
[1748732937272,17.32257943,157.17,157.13,26.0]
[1748732937563,44.05607533,157.17,157.13,26.0]
[1748732938283,44.05607533,157.17,157.13,52.7334959]
[1748732938569,17.32257943,157.17,157.13,52.7334959]
[1748732939059,17.32257943,157.17,157.14,26.7334959]
[1748732940050,17.32257943,157.17,157.13,52.7334959]
[1748732940371,10.96,157.17,157.14,26.7334959]
[1748732940777,10.96,157.17,157.13,52.7334959]
[1748732941687,17.32259912,157.17,157.13,52.7334959]
[1748732941868,26.7334959,157.14,157.11,9.43617765]
[1748732942060,26.7334959,157.12,157.11,9.43617765]
[1748732942677,48.26894256,157.17,157.11,9.43617765]
[1748732942878,10.88,157.12,157.11,9.43617765]
[1748732943569,84.31805801,157.12,157.11,9.43617765]
[1748732943770,84.31805801,157.12,157.11,7.76957765]
[1748732944667,87.5655035,157.12,157.11,7.76957765]
[1748732945762,87.3393735,157.12,157.11,7.76957765]
[1748732946493,103.25077879,157.12,157.03,26.0]
[1748732946694,26.7334959,157.07,157.03,26.0]
[1748732946892,10.9,157.06,157.03,26.0]
[1748732948192,17.26714762,157.06,157.03,26.0]
[1748732948698,26.7334959,157.05,157.01,18.64964886]
[1748732948985,26.7334959,157.05,157.01,44.64964886]
[1748732949292,26.7334959,157.04,157.01,44.64964886]
[1748732949670,26.7334959,157.04,157.01,26.0]
[1748732949891,26.7334959,157.03,157.01,26.0]
[1748732950104,26.7334959,157.04,157.01,26.0]
[1748732950274,6.36820989,157.03,157.01,26.0]
[1748732950892,33.10170579,157.03,156.99,71.38314476]
[1748732951267,33.10143044,157.04,156.99,71.38314476]
[1748732952994,73.34143044,157.04,156.99,71.38314476]
[1748732953378,46.60793454,157.04,156.99,44.64964886]
[1748732953696,73.34143044,157.04,156.99,71.38314476]
[1748732954294,73.34143044,157.04,157.0,26.7334959]
[1748732954990,46.60793454,157.04,157.0,26.7334959]
[1748732956596,73.34143044,157.04,156.99,71.38314476]
[1748732956795,26.7334959,157.03,156.99,71.38314476]
[1748732956981,73.34143044,157.04,156.99,71.38314476]
[1748732957497,46.60793454,157.04,156.99,44.64964886]
[1748732958198,46.60793454,157.04,156.99,71.38314476]
[1748732958701,46.60793454,157.04,156.99,62.48949019]
[1748732959672,64.44777587,157.04,156.99,26.0]
[1748732959877,64.44777587,157.04,156.99,43.83984133]
[1748732962299,64.44777587,157.04,157.0,17.83984133]
[1748732962777,46.60793454,157.04,157.0,17.83984133]
[1748732963109,46.60793454,157.04,156.99,43.83984133]
[1748732963399,64.44777587,157.04,156.99,43.83984133]
[1748732963702,64.44777587,157.04,157.0,17.83984133]
[1748732964289,46.60793454,157.04,156.99,43.83984133]
[1748732965095,64.44777587,157.04,156.99,43.83984133]
[1748732965299,64.44777587,157.04,156.99,26.0]
[1748732965494,64.44777587,157.04,156.99,43.83984133]
[1748732966209,64.44777587,157.04,156.99,26.0]
[1748732969108,64.44777587,157.04,156.99,32.2461]
[1748732969310,46.60793454,157.04,157.0,17.83984133]
[1748732969607,46.60793454,157.04,157.01,17.83984133]
[1748732970101,6.36793454,157.04,157.01,17.83984133]
[1748732970293,46.34793454,157.04,157.01,17.83984133]
[1748732971599,17.26842341,157.03,157.01,17.83984133]
[1748732972730,17.26842341,157.03,156.99,32.2461]
[1748732972906,17.26842341,157.03,157.0,17.83984133]
[1748732973116,17.26842341,157.03,156.99,50.08594133]
[1748732974095,10.7,157.02,156.99,43.83984133]
[1748732976030,17.06866273,157.02,156.99,43.83984133]
[1748732976332,6.36866273,157.02,156.99,43.83984133]
[1748732976520,17.06866273,157.02,156.99,43.83984133]
[1748732976827,17.06866273,157.02,156.98,17.83984133]
[1748732977227,34.90850406,157.02,156.98,17.83984133]
[1748732977807,17.06866273,157.02,156.99,17.83984133]
[1748732978713,10.7,157.02,156.99,17.83984133]
[1748732980111,10.7,157.02,156.97,51.16231351]
[1748732980436,17.06866757,157.02,156.99,17.83984133]
[1748732981326,10.7,157.02,156.99,17.83984133]
[1748732982715,10.7,157.03,157.0,17.83984133]
[1748732984819,10.7,157.03,157.0,24.2092442]
[1748732985010,10.7,157.03,157.0,6.36940287]
[1748732985211,10.7,157.03,156.99,24.20954276]
[1748732985433,24.20766272,157.04,156.99,24.20954276]
[1748732985737,10.7,157.03,156.99,24.20954276]
[1748732990228,27.5808,157.08,157.01,17.83984133]
[1748732990229,7.94699297,157.08,157.01,17.83984133]
[1748732990458,7.94699297,157.08,157.03,17.83984133]
[1748732990459,10.7,157.07,157.03,17.83984133]
[1748732991552,10.7,157.07,157.03,24.20784966]
[1748732994747,91.66,157.09,157.04,18.79181043]
[1748732994949,10.7,157.08,157.05,17.83984133]
[1748732995139,91.66,157.09,157.05,17.83984133]
[1748732995457,102.36,157.09,157.06,17.83984133]
[1748732995655,102.36,157.09,157.06,24.20655786]
[1748732996035,102.36,157.09,157.08,17.83984133]
[1748732996446,10.7,157.09,157.08,17.83984133]
[1748732997049,16.14940483,157.1,157.08,36.63165176]
[1748732997257,16.14940483,157.1,157.08,17.83984133]
[1748732997644,16.14940483,157.1,157.09,6.36577757]
[1748732998168,16.14940483,157.1,157.09,24.2056189]
[1748732998562,16.14940483,157.1,157.09,42.99742933]
[1748733000470,16.14940483,157.1,157.09,6.36577757]
[1748733007367,33.98924616,157.1,157.06,18.64964886]
[1748733007579,17.83984133,157.09,157.06,18.64964886]
[1748733008610,33.98924616,157.1,157.06,36.48949019]
[1748733009090,33.98924616,157.1,157.07,6.36658814]
[1748733009812,16.14940483,157.1,157.09,17.83984133]
[1748733011074,16.14940483,157.1,157.09,24.2056189]
[1748733011493,16.14940483,157.1,157.09,43.1395909]
[1748733011884,10.52,157.14,157.1,0.28432314]
[1748733012070,10.52,157.14,157.12,18.79181043]
[1748733013097,10.52,157.14,157.13,6.36415706]
[1748733013908,10.52,157.14,157.11,25.15677765]
[1748733014975,28.35984133,157.14,157.11,25.15677765]
[1748733015178,28.35984133,157.14,157.1,25.01485347]
[1748733015377,17.83984133,157.13,157.1,25.01485347]
[1748733015576,17.83984133,157.13,157.1,6.36520461]
[1748733016176,17.83984133,157.12,157.09,6.36563645]
[1748733016377,17.83984133,157.11,157.09,6.36563645]
[1748733018512,50.12,157.14,157.1,17.83984133]
[1748733018882,67.95984133,157.14,157.1,17.83984133]
[1748733019874,67.95984133,157.14,157.11,6.36496722]
[1748733020286,28.35984133,157.14,157.11,6.36496722]
[1748733022684,10.52,157.14,157.11,6.36496722]
[1748733024086,17.83984133,157.16,157.12,36.48949019]
[1748733024295,10.52,157.15,157.12,36.48949019]
[1748733025329,10.52,157.15,157.13,6.36415706]
[1748733026103,17.83984133,157.16,157.13,6.36415706]
[1748733026331,10.52,157.15,157.13,6.36415706]
[1748733029912,17.83984133,157.16,157.13,6.36415706]
[1748733030114,10.52,157.15,157.13,6.36415706]
[1748733031325,28.35984133,157.15,157.11,26.0]
[1748733031519,17.83984133,157.14,157.11,26.0]
[1748733032246,17.83984133,157.14,157.11,32.36492974]
[1748733037336,28.35984133,157.15,157.11,50.20477107]
[1748733040551,28.35984133,157.15,157.11,32.36492974]
[1748733042256,17.83984133,157.14,157.11,32.36492974]
[1748733049156,10.36,157.13,157.11,32.36492974]
[1748733050142,10.36,157.13,157.11,50.20477107]
[1748733050550,10.36,157.15,157.12,18.79181043]
[1748733050738,10.36,157.15,157.13,6.36415706]
[1748733052774,28.19984133,157.15,157.13,6.36415706]
[1748733054984,10.36,157.15,157.13,6.36415706]
[1748733059168,11.39864069,157.14,157.12,6.36443663]
[1748733060775,21.75864069,157.15,157.12,6.36443663]
[1748733061757,11.39864069,157.13,157.1,6.36524733]
[1748733061971,11.39864069,157.11,157.1,6.36524733]
[1748733062656,17.82197068,157.11,157.1,6.36524733]
[1748733064064,17.82197068,157.12,157.1,6.36524733]
[1748733065682,17.82197068,157.11,157.09,32.36565589]
[1748733065978,57.08197068,157.11,157.08,6.36608937]
[1748733066184,39.26,157.11,157.08,6.36608937]
[1748733067078,10.28,157.1,157.08,6.36608937]
[1748733067280,10.28,157.1,157.07,25.15839857]
[1748733067483,10.28,157.1,157.07,42.98036925]
[1748733068987,10.28,157.1,157.09,6.36577757]
[1748733071687,10.28,157.1,157.09,24.18774825]
[1748733075003,10.28,157.1,157.09,42.97955868]
[1748733076010,10.28,157.1,157.09,25.157588]
[1748733076835,10.28,157.1,157.09,42.97955868]
[1748733078084,10.28,157.1,157.09,69.12172025]
[1748733081492,49.6,157.13,157.1,18.79181043]
[1748733081993,49.6,157.13,157.1,36.61378111]
[1748733082599,10.28,157.13,157.1,36.61378111]
[1748733083611,10.28,157.13,157.11,6.36496722]
[1748733093010,21.68127561,157.13,157.1,6.36521201]
[1748733093216,11.40127561,157.12,157.1,6.36521201]
[1748733093915,11.40127561,157.12,157.09,6.36577757]
[1748733103315,11.40127561,157.12,157.07,43.68903718]
[1748733103516,11.40127561,157.11,157.08,6.36601321]
[1748733104718,11.40127561,157.1,157.07,12.51210083]
[1748733105309,11.40127561,157.09,157.07,12.51210083]
[1748733106805,11.40127561,157.09,157.06,6.36690232]
[1748733106999,11.40127561,157.07,157.05,32.36724745]
[1748733107203,10.28,157.07,157.05,32.36724745]
[1748733113518,10.28,157.07,157.05,43.76852306]
[1748733115818,10.28,157.07,157.06,12.8688935]
[1748733120537,10.28,157.07,157.06,24.27016911]
[1748733122147,10.28,157.07,157.06,17.76826911]
[1748733128034,10.28,157.07,157.06,6.3669935]
[1748733139771,60.74127561,157.07,157.02,18.64964886]
[1748733140048,11.40127561,157.05,157.02,25.01798806]
[1748733140254,11.40127561,157.06,157.02,25.01798806]
[1748733143239,11.40127561,157.05,157.01,32.36889301]
[1748733143550,39.06,157.04,157.01,32.36889301]
[1748733144650,50.46127561,157.04,157.01,32.36889301]
[1748733148469,10.28,157.07,157.03,11.40127561]
[1748733148767,10.28,157.07,157.05,11.40127561]
[1748733148930,10.28,157.07,157.04,11.40127561]
[1748733150050,10.28,157.07,157.04,18.64964886]
[1748733150850,10.28,157.07,157.04,30.05092447]
[1748733151054,10.28,157.07,157.05,6.36739891]
[1748733151249,10.28,157.07,157.05,17.76867452]
[1748733151962,10.28,157.07,157.05,6.36739891]
[1748733160555,10.28,157.07,157.05,6.36739891]
[1748733163786,150.6199,157.13,157.07,0.14216157]
[1748733163787,1.6199,157.13,157.07,0.14216157]
[1748733164076,10.62,157.12,157.09,11.40127561]
[1748733165169,10.62,157.12,157.09,0.14216157]
[1748733165370,10.62,157.12,157.09,11.54343718]
[1748733166160,10.62,157.12,157.1,6.36537237]
[1748733168268,10.62,157.12,157.1,17.76664798]
[1748733168571,11.40127561,157.14,157.11,30.19308604]
[1748733168572,10.62,157.14,157.11,30.19308604]
[1748733168763,10.62,157.14,157.12,11.40127561]
[1748733169586,10.62,157.14,157.13,11.40127561]
[1748733170470,91.64,157.15,157.13,17.76543267]
[1748733170773,91.64,157.15,157.14,11.40127561]
[1748733171363,10.62,157.16,157.14,11.40127561]
[1748733172061,10.62,157.16,157.15,11.40127561]
[1748733172381,10.62,157.16,157.15,30.19308604]
[1748733172563,10.62,157.16,157.15,36.55643316]
[1748733173278,11.40127561,157.2,157.15,36.55643316]
[1748733173482,10.62,157.2,157.16,11.40127561]
[1748733174071,22.02127561,157.2,157.15,52.46480096]
[1748733174272,11.40127561,157.19,157.15,41.06352535]
[1748733174766,10.62,157.2,157.15,41.06352535]
[1748733175084,11.40127561,157.19,157.15,52.46480096]
[1748733175683,10.62,157.2,157.15,52.46480096]
[1748733175874,22.02127561,157.2,157.15,52.46480096]
[1748733177967,11.40127561,157.19,157.15,6.36334712]
[1748733178786,21.92127561,157.19,157.15,6.36334712]
[1748733179288,11.40127561,157.17,157.15,6.36334712]
[1748733179968,11.40127561,157.17,157.14,6.36375206]
[1748733180778,17.81028849,157.17,157.14,6.36375206]
[1748733180983,17.81028849,157.16,157.14,6.36375206]
[1748733182211,17.81028849,157.15,157.12,6.3644859]
[1748733182369,39.66,157.17,157.11,18.64964886]
[1748733182370,17.81028849,157.13,157.11,6.36482966]
[1748733182700,28.33028849,157.13,157.11,6.36482966]
[1748733183067,17.81028849,157.12,157.1,6.36529328]
[1748733184309,28.33028849,157.13,157.1,6.36529328]
[1748733192587,17.81028849,157.11,157.08,6.36603285]
[1748733193291,17.81028849,157.1,157.08,6.36603285]
[1748733193683,56.44432633,157.13,157.07,6.36648978]
[1748733193886,17.81028849,157.09,157.06,26.0]
[1748733194087,56.44432633,157.13,157.05,6.36723806]
[1748733194088,17.81028849,157.08,157.05,6.36723806]
[1748733194594,10.52,157.07,157.04,6.50996595]
[1748733194809,10.52,157.07,157.04,24.32025444]
[1748733195090,10.52,157.07,157.05,17.81028849]
[1748733195707,10.52,157.07,157.04,24.32025444]
[1748733199612,10.52,157.07,157.06,36.60209892]
[1748733199992,10.52,157.11,157.07,18.79181043]
[1748733200189,10.52,157.11,157.08,17.81028849]
[1748733200910,10.52,157.11,157.09,17.81028849]
[1748733203101,10.52,157.11,157.08,24.17647132]
[1748733211524,10.52,157.11,157.09,18.79181043]
[1748733211719,10.52,157.11,157.1,6.36537237]
[1748733212615,10.52,157.11,157.1,42.96747129]
[1748733212794,10.52,157.11,157.1,43.10963286]
[1748733213000,17.81028849,157.16,157.11,18.79181043]
[1748733213331,10.36,157.15,157.11,36.60209892]
[1748733213808,10.36,157.15,157.12,6.36456211]
[1748733215933,10.36,157.15,157.12,24.1748506]
[1748733218534,10.36,157.15,157.14,6.36375206]
[1748733219340,10.36,157.15,157.14,42.96585098]
[1748733223437,17.81028849,157.18,157.14,42.96585098]
[1748733223731,67.49028849,157.18,157.14,42.96585098]